[Event "Olomouc Chess Summer-IM 2022"]
[Site "Olomouc"]
[Date "2022.08.16"]
[Round "5.8"]
[White "Gimenez Menchon, Cesar"]
[Black "Poschadel, Andreas Gregor"]
[Result "0-1"]
[ECO "B15"]
[WhiteElo "2205"]
[BlackElo "2073"]
[Annotator "TA"]
[PlyCount "94"]
[EventDate "2022.08.10"]
[EventCountry "CZE"]
[SourceTitle "playchess.com"]
[Source "ChessBase"]
[SourceQuality "1"]
[TimeControl "40/5400+30:1800+30"]

{[%evp 12,94,31,29,47,33,35,19,64,20,35,45,27,29,28,26,42,39,26,7,20,0,0,0,25,44,47,-45,-48,-79,-72,-313,-306,-341,-233,-364,-364,-743,-135,-293,-263,-262,-264,-256,-251,-231,-227,-391,-114,-80,-96,-91,-91,-80,0,-164,-162,-139,-159,-214,-219,-213,-237,-233,-221,-221,-214,-214,2012,-213,-213,-213,-189,-29992,-29993,-29993,-29994,-29995,-29996,-29996,-29997,-29997,-29998,-29998,-29999]} 1. e4 {[%emt 0:01:25]} c6 {[%emt 0:00:07]} 2. d4 {[%emt 0:00:44]} d5 {[%emt 0:00:09]} 3. Nd2 {[%emt 0:00:22]} dxe4 {[%emt 0:00:06]} 4. Nxe4 {[%emt 0:00:05]} Nf6 {[%emt 0:00:08]} 5. Nxf6+ {[%emt 0:00:06]} exf6 {[%emt 0:00:01]} 6. c3 {[%emt 0:01:02]} Bd6 {[%emt 0:00:10]} 7. Bd3 {[%emt 0:01:22]} Na6 {[%emt 0:00:22] B15: Caro-Kann: 3 Nc3: 3...g6 and 3...dxe4 4 Nxe4 Nf6 5 Nxf6+ exf6.} 8. Ne2 {[%emt 0:04:32]} Nc7 {[%emt 0:01:33]} 9. O-O {[%emt 0:02:55]} Kf8 {[%emt 0:05:37] The position is equal.} 10. Bf4 {[%emt 0:08:30] [#]} Nd5 $146 {[%emt 0:00:48]} ({Predecessor:} 10... h5 11. Bxd6+ Qxd6 12. Ng3 g6 13. Ne4 Qd8 14. Re1 Kg7 15. Qc2 h4 16. h3 Nd5 {0-1 (39) Kvak,R (1991)-Samunenkov,I (2301) Kiev 2021}) 11. Bxd6+ {[%emt 0:01:14]} Qxd6 {[%emt 0:00:02]} 12. Qd2 {[%emt 0:02:37]} h5 {[%emt 0:03:46]} 13. c4 {[%emt 0:06:54]} Nc7 {[%emt 0:01:35]} 14. Rad1 {[%emt 0:02:15]} g6 {[%emt 0:02:47]} 15. Rfe1 {[%emt 0:02:03]} Kg7 {[%emt 0:03:00]} 16. c5 {[%emt 0:10:04]} Qd8 {[%emt 0:02:26]} 17. Nf4 {[%emt 0:00:46]} g5 {[%emt 0:13:20]} 18. Ne2 {[%emt 0:00:07]} h4 {[%emt 0:00:11][%cal Bh5h4,Bh4h3][%mdl 32]} 19. Bc2 {[%emt 0:12:13]} (19. h3 $1 $14) 19... h3 $1 $15 {[%emt 0:06:57]} 20. Ng3 {[%emt 0:05:44]} Nd5 {[%emt 0:10:04]} 21. Ne4 $2 {[%emt 0:08:36]} (21. Bf5 $17) 21... hxg2 $19 {[%emt 0:06:36]} 22. Nd6 {[%emt 0:00:43]} Bg4 {[%emt 0:09:41]} 23. Be4 {[%emt 0:03:10]} (23. Bf5 {was called for.} Bxd1 24. Qxd1) 23... Nf4 $1 {[%emt 0:07:00][%cal Oh8h2] Hoping for ...Rxh2! Really sharp!} (23... Bxd1 24. Bxd5 cxd5 25. Qxd1 $15) 24. Bxg2 $2 {[%emt 0:05:00]} (24. f3 Be6 25. Nxb7) 24... Qd7 $2 {[%emt 0:11:55]} (24... Bxd1 25. Qxd1 Kf8 26. Qb3 $17) (24... Nxg2 $19 25. Qb4 Nxe1 26. Rxe1 Qd7) 25. Re3 $2 {[%emt 0:02:01]} (25. f3 $17 {keeps fighting.} Be6 26. Bf1) 25... Rh4 {[%emt 0:03:29]} 26. Rde1 {[%emt 0:04:15] Re7 is the strong threat.} Be6 {[%emt 0:02:13]} 27. Rg3 {[%emt 0:04:20]} Rah8 {[%emt 0:02:18]} (27... Bxa2 28. b3 $18) 28. Re4 {[%emt 0:00:06]} Kf8 {[%emt 0:02:10]} 29. a4 $2 {[%emt 0:00:48]} (29. Bf3) 29... Rxh2 $2 {[%emt 0:03:51]} (29... f5 $19 {is more deadly.} 30. Rxe6 Qxe6) 30. Rxf4 $17 {[%emt 0:00:08]} gxf4 {[%emt 0:00:02]} 31. Qxf4 {[%emt 0:00:20]} R2h6 $1 {[%emt 0:01:26]} 32. b4 {[%emt 0:00:59]} Ke7 {[%emt 0:01:13]} ({Black should try} 32... f5 $17 {Threatens to win with ...f6.} 33. Kf1 f6) 33. b5 $2 {[%emt 0:01:14] [#]} (33. Re3 $11 {and White is okay.} Kf8 34. Kf1) 33... Rh4 $1 $19 {[%emt 0:01:17]} 34. Qe3 {[%emt 0:00:19] Strongly threatening d5.} Kf8 {[%emt 0:00:34]} 35. Qc3 {[%emt 0:03:20]} (35. bxc6 $17 {was worth a try.} bxc6 36. Qc3) 35... Bd5 {[%emt 0:00:29]} 36. Bxd5 {[%emt 0:01:09]} cxd5 37. c6 {[%emt 0:02:28]} Qxd6 {[%emt 0:01:04]} 38. c7 {[%emt 0:00:29]} Rh1+ {[%emt 0:00:30]} 39. Kg2 {[%emt 0:00:04]} R8h2+ {[%emt 0:00:30]} 40. Kf3 {[%emt 0:00:04] [#]} Rxf2+ $3 {[%emt 0:00:29]} 41. Kxf2 {[%emt 0:30:21][%mdl 4096] Endgame KQR-KQR} Qf4+ {[%emt 0:05:00]} 42. Ke2 $2 {[%emt 0:00:00]} (42. Rf3 Qh2+ 43. Ke3 Qg1+ 44. Kd3 Qd1+ 45. Ke3 {[#]} Qxf3+ $3 {[%mdl 512]} 46. Kxf3 Rh3+ 47. Kf2 Rxc3 $19) (42. Qf3 $19 Qxd4+ 43. Qe3 Rh2+ 44. Kf1 (44. Kg1 $2 Qxe3+ 45. Rxe3 Rc2 $19) 44... Qc4+ 45. Kg1) 42... Qe4+ {[%emt 0:20:16] Black mates.} 43. Qe3 {[%emt 0:00:00]} Qc2+ {[%emt 0:00:34]} 44. Kf3 {[%emt 0:00:00]} Rf1+ {[%emt 0:00:21]} 45. Kg4 {[%emt 0:00:00]} Qf5+ {[%emt 0:00:07]} ({Avoid the trap} 45... Qxc7 $2 46. Rf3 Rh1 47. Qa3+ Kg7 48. Rg3 $19) 46. Kh4 {[%emt 0:00:00]} Rh1+ {[%emt 0:00:07]} 47. Rh3 {[%emt 0:00:00]} Rxh3+ {[%emt 0:00:02] What a bad dream for White.  Weighted Error Value: White=0.65/Black=0.32} 0-1

[Event "Olomouc Chess Summer-IM 2022"]
[Site "Olomouc"]
[Date "2022.08.16"]
[Round "5.9"]
[White "Nytra, Ondrej"]
[Black "Lalic, Bogdan"]
[Result "1/2-1/2"]
[ECO "B58"]
[WhiteElo "2202"]
[BlackElo "2415"]
[Annotator "ChessBase"]
[PlyCount "46"]
[EventDate "2022.08.10"]
[EventCountry "CZE"]
[SourceTitle "playchess.com"]
[Source "ChessBase"]
[SourceQuality "1"]
[TimeControl "40/5400+30:1800+30"]

1. e4 c5 2. Nf3 d6 3. d4 cxd4 4. Nxd4 Nf6 5. Nc3 Nc6 6. Be2 e5 7. Nf3 h6 8. O-O Be7 9. Re1 O-O 10. b3 a6 11. Bb2 b5 12. Qd2 Bg4 13. h3 Bxf3 14. Bxf3 Nd4 15. Bd1 Rc8 16. a4 Qc7 17. axb5 axb5 18. Re3 Qb7 19. Qd3 Rfd8 20. Nd5 Nxd5 21. exd5 b4 22. Bxd4 exd4 23. Rf3 Qxd5 1/2-1/2

[Event "Olomouc Chess Summer-IM 2022"]
[Site "Olomouc"]
[Date "2022.08.16"]
[Round "5.10"]
[White "Kusa, Jakub"]
[Black "Nagy, Ladislav"]
[Result "1-0"]
[ECO "E04"]
[WhiteElo "2373"]
[BlackElo "2194"]
[Annotator "TA"]
[PlyCount "100"]
[EventDate "2022.08.10"]
[EventCountry "CZE"]
[SourceTitle "playchess.com"]
[Source "ChessBase"]
[SourceQuality "1"]
[TimeControl "40/5400+30:1800+30"]

{[%evp 13,100,22,22,22,29,16,32,21,23,19,32,16,23,18,33,15,30,20,19,25,37,37,36,42,39,45,118,125,122,118,124,120,114,118,124,118,250,250,250,246,241,235,263,277,264,259,448,428,470,472,510,493,503,501,485,470,483,476,473,445,369,0,657,641,642,431,400,392,639,573,550,370,720,525,1156,1135,1168,1106,4822,4722,29973,29974,29973,29975,29975,29975,29969,29967,5210]} 1. d4 {[%emt 0:00:03]} Nf6 {[%emt 0:00:11]} 2. c4 {[%emt 0:00:11]} e6 {[%emt 0:00:18]} 3. Nf3 {[%emt 0:00:09]} d5 {[%emt 0:00:23]} 4. g3 {[%emt 0:00:12]} dxc4 {[%emt 0:00:22]} 5. Bg2 {[%emt 0:00:17]} Nc6 {[%emt 0:00:46]} 6. Qa4 {[%emt 0:00:27]} Bb4+ {[%emt 0:00:58]} 7. Bd2 {[%emt 0:00:10]} Nd5 {[%emt 0:01:05]} 8. Bxb4 {[%emt 0:00:36] E04: Open Catalan: 5 Nf3.} Ndxb4 {[%emt 0:00:17]} 9. Nc3 {[%emt 0:01:04]} Bd7 {[%emt 0:01:39][%cal Oc6d4] [#] White must now prevent ...Nxd4!} 10. O-O {[%emt 0:01:39] White is slightly better.} a5 {[%emt 0:01:27][%cal Oc6d4]} 11. Qd1 {[%emt 0:00:51]} O-O {[%emt 0:01:13]} 12. e3 {[%emt 0:00:55]} a4 {[%emt 0:01:58]} 13. Nxa4 {[%emt 0:00:21]} Nxd4 {[%emt 0:01:32]} 14. Qxd4 {[%emt 0:00:31]} Bxa4 {[%emt 0:01:12]} 15. Qxc4 {[%emt 0:00:08]} Qe7 {[%emt 0:01:15]} 16. Rac1 {[%emt 0:01:34] [#]} c6 $146 {[%emt 0:16:14]} ({Predecessor:} 16... Rfc8 17. Nd4 c5 18. a3 Nd5 19. Nf5 Qd7 20. Bxd5 exf5 21. Rfe1 b5 22. Qd3 c4 {½-½ (30) Simacek,P (2474)-Kriebel,T (2464) Legnica 2016}) 17. Nd4 {[%emt 0:01:58] Against Bb5} Ra5 {[%emt 0:22:49]} 18. a3 {[%emt 0:27:15]} Nd5 {[%emt 0:01:37]} 19. Bxd5 {[%emt 0:03:00]} exd5 {[%emt 0:08:33] White stays focused until the end.} (19... cxd5 $14 20. Qb4 Qxb4 21. axb4 Raa8) 20. Qb4 $16 {[%emt 0:00:57]} Qxb4 {[%emt 0:10:35]} 21. axb4 {[%emt 0:00:02]} Ra6 {[%emt 0:11:31]} 22. b3 {[%emt 0:00:34] White is more active.} Bb5 {[%emt 0:00:02]} 23. Nxb5 {[%emt 0:01:06]} cxb5 {[%emt 0:00:01][%mdl 4096] Endgame KRR-KRR} 24. Rc7 {[%emt 0:06:14]} Rb6 {[%emt 0:07:05]} (24... d4 $16 {was worth a try.}) 25. Rd1 $18 {[%emt 0:01:59]} g6 {[%emt 0:01:40]} 26. Rxd5 {[%emt 0:00:40]} Ra8 {[%emt 0:00:28]} 27. Rd4 {[%emt 0:02:22]} Rf6 {[%emt 0:03:47]} 28. Rxb7 {[%emt 0:03:35]} Ra2 {[%emt 0:03:17]} 29. Rf4 {[%emt 0:00:07]} (29. Rxb5 Rfxf2 30. h4 Rg2+ 31. Kf1 Raf2+ 32. Ke1 Ra2 $15) 29... Rxf4 {[%emt 0:00:03]} (29... Kg7 {was called for.} 30. Rxf6 (30. Rxb5 Rxf4 31. gxf4 Ra3 $18) 30... Kxf6 31. Rxb5 Rb2) 30. gxf4 {[%emt 0:00:57] KR-KR} ({Not} 30. exf4 Rb2 31. Rxb5 Kg7 $18) 30... Rb2 {[%emt 0:00:33]} 31. Rxb5 {[%emt 0:00:46]} Rxb3 {[%emt 0:00:38]} 32. Kg2 {[%emt 0:01:00]} Kg7 {[%emt 0:00:36]} 33. Rb8 {[%emt 0:01:07]} Kf6 {[%emt 0:01:11]} 34. Kf3 {[%emt 0:01:47]} Ke6 {[%emt 0:01:17]} 35. b5 {[%emt 0:01:33]} Kd6 {[%emt 0:00:35]} 36. Rb7 {[%emt 0:00:44]} Ke6 {[%emt 0:00:12]} 37. Rb8 $2 {[%emt 0:04:21]} ({White should play} 37. b6 $18) 37... h5 $2 {[%emt 0:00:49][%mdl 8192]} (37... Kd6 $11) 38. b6 {[%emt 0:04:25]} Rb4 {[%emt 0:00:35]} 39. e4 {[%emt 0:03:51]} Rb3+ {[%emt 0:00:31]} 40. Ke2 {[%emt 0:01:21] Strongly threatening b7.} Rb2+ $2 {[%emt 0:00:41]} (40... Kd6 41. e5+ Kd5) 41. Ke3 {[%emt 0:30:43]} Ke7 {[%emt 0:07:30]} 42. h4 {[%emt 0:00:00] And now b7 would win.} Kf6 $2 {[%emt 0:06:56]} (42... Kd6 43. b7 Kc6 44. Rc8+ Kxb7) 43. f3 {[%emt 0:00:00]} Ke7 {[%emt 0:12:07]} 44. Kd4 {[%emt 0:00:00]} Kd6 {[%emt 0:02:02]} 45. b7 {[%emt 0:00:00] Hoping for Rd8+.} Ke7 {[%emt 0:01:37] Inhibits Rd8.} 46. e5 {[%emt 0:00:00]} Rd2+ {[%emt 0:02:40]} 47. Kc3 {[%emt 0:00:00] White mates.} Rd7 {[%emt 0:00:31] [#]} 48. Re8+ $3 {[%emt 0:00:00][%mdl 512]} Kxe8 {[%emt 0:00:09]} 49. b8=Q+ {[%emt 0:00:00]} Rd8 {[%emt 0:00:46]} 50. Qb6 {[%emt 0:00:00]} Ke7 {[%emt 0:01:16] Weighted Error Value: White=0.19 (very precise) /Black=0.46} 1-0

[Event "Olomouc Chess Summer-IM 2022"]
[Site "Olomouc"]
[Date "2022.08.16"]
[Round "5.11"]
[White "Saypuri Srithan"]
[Black "Obsivac, Josef"]
[Result "1-0"]
[ECO "B31"]
[WhiteElo "1923"]
[BlackElo "2272"]
[Annotator "TA"]
[PlyCount "115"]
[EventDate "2022.08.10"]
[EventCountry "CZE"]
[SourceTitle "playchess.com"]
[Source "ChessBase"]
[SourceQuality "1"]
[TimeControl "40/5400+30:1800+30"]

{[%evp 13,115,0,7,0,15,0,6,1,13,14,3,4,7,-16,15,0,0,0,45,50,101,100,97,85,86,55,202,172,172,144,156,159,200,200,199,196,414,424,459,440,521,510,497,308,441,329,301,202,210,0,30,30,30,30,30,26,26,0,0,0,0,0,0,0,0,0,0,0,0,0,8,8,920,14,21,21,27,28,1318,668,1197,63,740,47,1196,0,656,633,559,580,552,455,1604,1365,1378,1601,1557,1456,1290,1240,5941,5527,2455,1821]} 1. e4 {[%emt 0:02:51]} c5 {[%emt 0:00:08]} 2. Nf3 {[%emt 0:00:04]} Nc6 {[%emt 0:00:09]} 3. Bb5 {[%emt 0:00:05]} g6 {[%emt 0:00:26]} 4. O-O {[%emt 0:00:08]} Bg7 {[%emt 0:00:22]} 5. c3 {[%emt 0:00:05]} Nf6 {[%emt 0:00:51]} 6. Re1 {[%emt 0:00:09]} O-O {[%emt 0:01:10]} 7. h3 {[%emt 0:02:14]} Qb6 {[%emt 0:14:55]} 8. a4 $1 {[%emt 0:00:26][%mdl 4] is now more promising than 8.Ba4. B31: Sicilian: 2...Nc6 3 Bb5 g6.} a6 {[%emt 0:11:03]} 9. Bxc6 {[%emt 0:00:07]} Qxc6 {[%emt 0:00:05]} 10. d4 {[%emt 0:02:41] The position is equal.} d5 {[%emt 0:08:17] [#]} 11. e5 $146 {[%emt 0:15:26]} ({Predecessor:} 11. exd5 Nxd5 12. c4 Nb4 13. d5 Qc7 14. Nc3 Bf5 15. Nh4 Bd3 16. Bg5 Rfe8 17. Qd2 Bxc4 {½-½ (34) Muzychuk,A (2531)-Buksa,N (2401) Warsaw 2021}) 11... Ne4 {[%emt 0:00:36]} 12. Nbd2 {[%emt 0:11:46]} Nxd2 {[%emt 0:04:18]} 13. Nxd2 {[%emt 0:01:40]} c4 {[%emt 0:08:00]} 14. a5 {[%emt 0:01:20]} Bf5 {[%emt 0:04:05]} 15. b3 {[%emt 0:28:14]} Bd3 {[%emt 0:05:51]} 16. bxc4 {[%emt 0:01:03]} Bxc4 {[%emt 0:00:20]} (16... dxc4 $14 17. Ba3 Rfe8) 17. Ba3 {[%emt 0:02:24]} Rfe8 {[%emt 0:00:35]} 18. Nxc4 {[%emt 0:01:50]} Qxc4 {[%emt 0:01:18]} 19. Bc5 {[%emt 0:00:40]} Bh6 {[%emt 0:14:22] Prevents Qd2.} (19... Qxc3 20. Re3 Qc4 21. Rb3 $16) (19... e6 $1 $14) 20. Qc2 {[%emt 0:01:50]} Qb5 {[%emt 0:01:25]} 21. Reb1 {[%emt 0:00:43]} Qd7 {[%emt 0:00:12]} 22. Rb6 {[%emt 0:00:07] White is more active.} Rac8 {[%emt 0:00:46]} 23. Rab1 {[%emt 0:01:02]} Rc7 {[%emt 0:00:41]} 24. Qb3 {[%emt 0:00:29]} Rc6 $2 {[%emt 0:10:43]} (24... Bd2 25. Qb2 (25. Rxb7 Rxb7 26. Qxb7 Qxb7 $16) 25... Bf4) 25. Rxb7 $18 {[%emt 0:01:49]} Qe6 {[%emt 0:00:03]} 26. Rb8 {[%emt 0:01:48]} Rxb8 {[%emt 0:00:42]} 27. Qxb8+ {[%emt 0:00:05]} Kg7 {[%emt 0:00:05]} 28. Qb7 {[%emt 0:06:45]} Qf5 {[%emt 0:05:50]} (28... Bf4 $142 29. Rb2 (29. Bxe7 Rxc3 30. Bf8+ Kg8 $18) (29. Rb6 Rxb6 30. Qxb6 Bg5 $18) 29... Rxc5 30. dxc5 Qxe5) 29. Bxe7 {[%emt 0:01:33]} Rxc3 {[%emt 0:03:41][%cal Of5b1]} 30. Bf6+ {[%emt 0:01:12]} Kg8 {[%emt 0:00:03]} 31. g4 $2 {[%emt 0:01:08]} (31. Rd1 $18) 31... Qxb1+ {[%emt 0:01:48][%mdl 64] Remove Defender} 32. Qxb1 {[%emt 0:00:03] Intending Qb8+ and mate.} Rc1+ {[%emt 0:00:07] [#]} 33. Qxc1 $1 {[%emt 0:00:03]} Bxc1 $11 {[%emt 0:00:06][%mdl 4096] Endgame KB-KB} 34. Bd8 {[%emt 0:00:26]} Kf8 {[%emt 0:00:18]} 35. h4 {[%emt 0:04:04]} Ke8 {[%emt 0:00:56]} 36. Bb6 {[%emt 0:00:18]} Kd7 {[%emt 0:01:02]} 37. Kg2 {[%emt 0:00:21]} h5 {[%emt 0:02:02]} 38. Kg3 {[%emt 0:01:10]} Ke6 {[%emt 0:00:27]} 39. Kf3 {[%emt 0:01:08]} Bd2 {[%emt 0:00:30]} 40. Ke2 {[%emt 0:01:07]} Bc1 {[%emt 0:00:39]} 41. f3 {[%emt 0:32:27]} Bb2 {[%emt 0:30:21]} 42. Kd2 {[%emt 0:04:30] [#] aiming for Kc2.} Kd7 $2 {[%emt 0:00:00][%mdl 8192]} (42... Ba3 $11) 43. Bc5 $2 {[%emt 0:00:00]} ({White should play} 43. Kc2 $18) 43... Ke6 {[%emt 0:00:00]} 44. Kc2 {[%emt 0:00:00]} Ba1 {[%emt 0:00:00]} 45. Bb6 {[%emt 0:00:00]} Kd7 $2 {[%emt 0:00:00][%mdl 8192]} (45... f6 $11) 46. Kb3 $18 {[%emt 0:00:00]} Ke6 {[%emt 0:00:00]} 47. Ba7 $2 {[%emt 0:00:00]} (47. Kb4 $18 Kd7 48. gxh5 gxh5 49. Kc5) 47... Kd7 $2 {[%emt 0:00:00][%mdl 8192]} (47... f6 $14) 48. Kb4 $2 {[%emt 0:00:00]} (48. gxh5 $18 {Threatening mate with h6.} gxh5 49. Bb6) 48... Ke6 $2 {[%emt 0:00:00][%mdl 8192]} (48... Bb2 $14) 49. Kb3 {[%emt 0:00:00]} Kd7 $1 {[%emt 0:00:00]} 50. Bc5 {[%emt 0:00:00] White is clearly winning.} Ke6 {[%emt 0:00:00]} 51. Bb6 {[%emt 0:00:00] Kb4 is the strong threat.} Kd7 {[%emt 0:00:00]} 52. Kb4 {[%emt 0:00:00]} Ke6 {[%emt 0:00:00]} (52... Kc6 $142 53. Kb3 Kd7 54. gxh5 gxh5) 53. Kc5 {[%emt 0:00:30] Strongly threatening gxh5.} Bc3 {[%emt 0:00:00]} 54. gxh5 {[%emt 0:04:53]} gxh5 {[%emt 0:00:02]} 55. Kc6 {[%emt 0:01:09] And now Kb7 would win.} Be1 {[%emt 0:01:39]} 56. Kb7 {[%emt 0:00:11]} Bxh4 {[%emt 0:00:37]} 57. Kxa6 {[%emt 0:00:03]} Be1 {[%emt 0:05:51]} 58. Kb7 {[%emt 0:00:04] Weighted Error Value: White=0.79/Black=0.28 (precise)} 1-0

[Event "Olomouc Chess Summer-IM 2022"]
[Site "Olomouc"]
[Date "2022.08.16"]
[Round "5.12"]
[White "Mannion, Stephen R"]
[Black "Paseka, Matyas"]
[Result "1-0"]
[ECO "B90"]
[WhiteElo "2232"]
[BlackElo "2218"]
[Annotator "NA"]
[PlyCount "59"]
[EventDate "2022.08.10"]
[EventCountry "CZE"]
[SourceTitle "playchess.com"]
[Source "ChessBase"]
[SourceQuality "1"]
[TimeControl "40/5400+30:1800+30"]

1. e4 {[%emt 0:00:02]} c5 {[%emt 0:00:09]} 2. Nf3 {[%emt 0:00:07]} d6 {[%emt 0:00:06]} 3. d4 {[%emt 0:00:04]} cxd4 {[%emt 0:00:07]} 4. Nxd4 {[%emt 0:00:04]} Nf6 {[%emt 0:00:11]} 5. Nc3 {[%emt 0:00:05]} a6 {[%emt 0:00:06]} 6. f3 {[%emt 0:00:09]} e5 {[%emt 0:00:21]} 7. Nb3 {[%emt 0:00:07]} Be6 {[%emt 0:00:13]} 8. Be3 {[%emt 0:00:08]} h5 {[%emt 0:00:22]} 9. Nd5 {[%emt 0:00:30]} Bxd5 {[%emt 0:00:12]} 10. exd5 {[%emt 0:00:05]} Nbd7 {[%emt 0:00:25]} 11. Qd2 {[%emt 0:00:38]} g6 {[%emt 0:00:56]} 12. O-O-O {[%emt 0:01:10]} Rc8 {[%emt 0:02:47]} 13. Kb1 {[%emt 0:01:21]} b5 {[%emt 0:01:57]} 14. Na5 {[%emt 0:13:35]} Qc7 {[%emt 0:04:36]} 15. c4 {[%emt 0:02:34]} Nb6 {[%emt 0:15:05]} 16. cxb5 {[%emt 0:07:30]} Nbxd5 {[%emt 0:00:35]} 17. bxa6 {[%emt 0:01:05]} Nxe3 {[%emt 0:19:36]} 18. Bb5+ {[%emt 0:00:22]} Nd7 {[%emt 0:00:13]} 19. Rc1 {[%emt 0:03:35]} Nc2 {[%emt 0:00:20]} 20. Rxc2 {[%emt 0:01:10]} Qxc2+ {[%emt 0:00:09]} 21. Qxc2 {[%emt 0:00:05]} Rxc2 {[%emt 0:00:05]} 22. Kxc2 {[%emt 0:00:19]} Ke7 {[%emt 0:03:05]} 23. Nc4 {[%emt 0:47:04]} Bg7 {[%emt 0:01:17]} 24. Bc6 {[%emt 0:00:46]} Nb8 {[%emt 0:01:59]} 25. Bb7 {[%emt 0:00:38]} Nxa6 {[%emt 0:00:36]} 26. Bxa6 {[%emt 0:00:07]} Ra8 {[%emt 0:00:23]} 27. Bb7 {[%emt 0:04:41]} Rxa2 {[%emt 0:00:26]} 28. Rd1 {[%emt 0:00:25]} Ra7 {[%emt 0:00:43]} 29. Nxd6 {[%emt 0:00:34]} Ke6 {[%emt 0:00:26]} 30. Ne4 {[%emt 0:03:12]} 1-0

[Event "Olomouc Chess Summer-IM 2022"]
[Site "Olomouc"]
[Date "2022.08.16"]
[Round "5.13"]
[White "Wiley, Tom E"]
[Black "Mica, Marek"]
[Result "1/2-1/2"]
[ECO "D35"]
[WhiteElo "2169"]
[BlackElo "2297"]
[Annotator "TA"]
[PlyCount "56"]
[EventDate "2022.08.10"]
[EventCountry "CZE"]
[SourceTitle "playchess.com"]
[Source "ChessBase"]
[SourceQuality "1"]
[TimeControl "40/5400+30:1800+30"]

{[%evp 11,56,35,29,24,25,20,23,22,29,17,28,28,29,32,48,40,42,39,43,43,49,40,58,52,83,83,83,75,75,72,72,72,72,72,72,72,72,47,52,47,47,47,47,47,47,47,47]} 1. d4 {[%emt 0:00:02]} Nf6 {[%emt 0:01:20]} 2. c4 {[%emt 0:00:13]} e6 {[%emt 0:00:10]} 3. Nc3 {[%emt 0:00:07]} d5 {[%emt 0:02:14]} 4. cxd5 {[%emt 0:00:15]} exd5 {[%emt 0:00:10]} 5. Bg5 {[%emt 0:00:12]} Bb4 {[%emt 0:00:44]} 6. e3 {[%emt 0:03:21]} h6 {[%emt 0:00:23]} 7. Bxf6 {[%emt 0:03:03] D35: Queen's Gambit Declined: Exchange Variation.} Qxf6 {[%emt 0:00:18]} 8. Qb3 {[%emt 0:00:14]} Qd6 {[%emt 0:01:38]} 9. a3 {[%emt 0:03:19] White has an edge.} Bxc3+ {[%emt 0:02:42]} 10. Qxc3 {[%emt 0:00:24] [#]} c6 $146 {[%emt 0:03:30]} ({Predecessor:} 10... Bf5 11. Qb4 Qb6 12. Rc1 c6 13. Nf3 Nd7 14. Nd2 Qc7 15. a4 a5 16. Qa3 Nf6 {½-½ (46) Daneshvar,B (2490)-Dominguez Perez,L (2754) Chennai 2022}) 11. Bd3 {[%emt 0:00:48]} Nd7 {[%emt 0:03:29]} 12. Nf3 {[%emt 0:02:26]} Nb6 {[%emt 0:11:23]} 13. O-O {[%emt 0:05:53]} O-O {[%emt 0:01:15]} 14. b4 {[%emt 0:09:59]} a6 {[%emt 0:02:31]} 15. a4 {[%emt 0:01:13][%cal Ba3a4,Ba4a5][%mdl 32]} Be6 {[%emt 0:02:15]} 16. Nd2 {[%emt 0:12:26]} Nd7 {[%emt 0:08:53]} 17. Nb3 {[%emt 0:02:23]} b6 {[%emt 0:03:15]} 18. a5 {[%emt 0:03:33]} b5 {[%emt 0:00:25]} 19. Rac1 {[%emt 0:00:21]} Rac8 {[%emt 0:00:21]} 20. Nc5 {[%emt 0:00:49]} Nxc5 {[%emt 0:01:11]} 21. Qxc5 {[%emt 0:00:11]} Qxc5 {[%emt 0:05:51]} 22. Rxc5 {[%emt 0:00:11]} Rfd8 {[%emt 0:00:37]} 23. Rfc1 {[%emt 0:05:09]} Rd6 {[%emt 0:01:45]} 24. f3 {[%emt 0:01:11] White is more active.} f5 {[%emt 0:01:53] White is slightly better.} 25. Kf2 {[%emt 0:04:21]} Bd7 {[%emt 0:01:14]} 26. h4 {[%emt 0:11:39]} g6 {[%emt 0:03:23]} 27. Rh1 {[%emt 0:02:01]} Kg7 {[%emt 0:00:38]} 28. Rcc1 {[%emt 0:02:19]} Re8 {[%emt 0:01:27] Weighted Error Value: White=0.02 (flawless) /Black=0.04 (flawless)} 1/2-1/2

[Event "Olomouc Chess Summer-IM 2022"]
[Site "Olomouc"]
[Date "2022.08.16"]
[Round "5.14"]
[White "Biolek, Richard"]
[Black "Nemec, Jachym"]
[Result "1/2-1/2"]
[ECO "A49"]
[WhiteElo "2402"]
[BlackElo "2341"]
[Annotator "TA"]
[PlyCount "40"]
[EventDate "2022.08.10"]
[EventCountry "CZE"]
[SourceTitle "playchess.com"]
[Source "ChessBase"]
[SourceQuality "1"]
[TimeControl "40/5400+30:1800+30"]

{[%evp 17,40,16,31,0,0,9,9,-2,15,24,64,38,51,18,45,8,12,-7,-8,-29,-26,-38,-33,-62,-39]} 1. d4 {[%emt 0:00:05]} Nf6 {[%emt 0:00:05]} 2. Nf3 {[%emt 0:00:49]} g6 {[%emt 0:00:06]} 3. g3 {[%emt 0:01:25]} Bg7 {[%emt 0:00:06]} 4. Bg2 {[%emt 0:00:09]} d5 {[%emt 0:00:04]} 5. O-O {[%emt 0:03:23]} O-O {[%emt 0:00:05]} 6. Nbd2 {[%emt 0:00:29]} c6 {[%emt 0:01:47]} 7. c4 {[%emt 0:03:39]} Bf5 {[%emt 0:06:33]} 8. b3 {[%emt 0:05:04]} Qa5 {[%emt 0:09:35]} 9. Bb2 {[%emt 0:05:01]} Ne4 {[%emt 0:00:11]} 10. Nxe4 {[%emt 0:05:33] D78: Fianchetto Grünfeld: 6 0-0 c6.} Bxe4 {[%emt 0:00:21]} 11. Qc1 {[%emt 0:08:27]} Nd7 {[%emt 0:02:27][%cal Bb8d7,Bd7f6,Bf6e4][%mdl 32]} 12. Qe3 {[%emt 0:05:01] [#] The position is equal.} Qb6 $146 {[%emt 0:02:34]} ({Predecessor:} 12... e6 13. Rfc1 Rfe8 14. Bh3 Bxf3 15. Qxf3 Rad8 16. e3 Qb6 17. Rc2 dxc4 18. Rxc4 e5 19. Bxd7 Rxd7 20. dxe5 Bxe5 {½-½ (45) Grigoriants,S (2594)-Jepson,C (2428) Helsingor 2015}) 13. Bh3 {[%emt 0:11:29]} Nf6 {[%emt 0:08:14]} 14. Ne5 {[%emt 0:03:34] Black must now prevent g4.} Bf5 {[%emt 0:05:33]} 15. Bg2 {[%emt 0:01:09]} Rfe8 {[%emt 0:01:54]} 16. Rfc1 {[%emt 0:02:22]} Rad8 {[%emt 0:03:59]} 17. Bc3 {[%emt 0:11:12]} Ne4 {[%emt 0:09:37]} 18. cxd5 {[%emt 0:20:33]} cxd5 {[%emt 0:04:30]} 19. Bxe4 {[%emt 0:03:12]} dxe4 {[%emt 0:01:15]} 20. Rd1 {[%emt 0:01:25]} Bxe5 {[%emt 0:14:09] Weighted Error Value: White=0.18 (very precise) /Black=0.09 (flawless)} 1/2-1/2